{"text_format":"1","workbook":"xlsx","n_sheets":2,"sheets":["Base Inventario","Categorias DP"],"not_rendered":{"charts":0,"images":1,"macros":1,"external_links":1,"defined_names":50,"comments":1,"pivot_tables":0},"unopened":[],"bounds":{"document_bytes":16777216,"sheet_cells":100000,"rows_first":2000,"rows_last":500,"rows_between":2000,"halvings":0,"cell_chars":16384,"cell_head_chars":4096},"cells_cut":0,"cells_raw":0,"read":"whole","date_system":"1900"}

{"sheet":"Base Inventario","index":0,"n_rows":127,"n_cols":13,"rows_kept":127,"cut":false,"hidden":false,"merged":[[69,11,70,11],[69,12,70,12],[70,1,70,3],[70,5,70,8],[70,9,70,10],[126,4,126,5],[65,0,65,1],[65,4,67,7],[66,0,66,1],[67,0,67,1],[68,0,69,0],[68,9,68,10],[69,9,69,10],[42,0,44,0],[46,0,48,0],[50,0,52,0],[54,0,56,0],[58,0,60,0],[61,0,64,0],[38,0,40,0],[8,0,8,3],[8,4,8,5],[8,6,8,7],[8,9,8,10],[10,0,12,0],[14,0,16,0],[18,0,20,0],[22,0,24,0],[26,0,28,0],[30,0,32,0],[34,0,36,0],[4,0,4,1],[4,3,4,4],[4,5,7,6],[5,0,5,1],[5,3,5,4],[6,0,6,1],[6,3,6,4],[7,0,7,1],[7,3,7,4],[0,3,0,4],[0,5,0,12],[1,0,1,1],[1,3,1,4],[1,6,1,12],[2,0,2,1],[2,3,2,4],[2,5,3,6],[3,0,3,2],[3,3,3,4]]}
[null,null,null,"Instituto Estatal de Transparencia, Acceso a la Información y Protección de Datos Personales.",null,"Formato de inventario de datos personales y de los sistemas de tratamiento.\nIndicaciones :\nCon la finalidad de facilitar el llenado de este inventario, en la parte inferior de la presente hoja de Excel, se encuentran las instrucciones y definiciones de cada uno de los criterios \nque forman parte de este inventario de datos personales y de los sistemas de tratamiento."]
["Fecha de elaboración o última actualización: ",null,null,"2024-02-01",null,"Versión: 2.0"]
["Denominación del Sujeto Obligado: ",null,null,{"$f":"D1","v":"Instituto Estatal de Transparencia, Acceso a la Información y Protección de Datos Personales."},null,"Finalidad del tratamiento"]
["Área de Adscripción"]
["Área administrativa responsable del tratamiento "]
["Denominación del tratamiento o sistema de tratamiento (proceso, procedimiento, trámite, servicio, beneficio, actividad, o plataforma informática que procese datos.)"]
["Fundamento legal que habilita el tratamiento "]
["Código de inventario:",null,null,null,null,null,null,null,null,null,null,"Dxwru Mrpdwkdp Ghñjdgr Uhbhv","Dxwru Mrpdwkdp Ghñjdgr Uhbhv"]
["LISTADO DE LOS DATOS PERSONALES OBJETO DE TRATAMIENTO",null,null,null,"CATÁLOGO DE MEDIOS FÍSICOS Y ELECTRÓNICOS A TRAVÉS DE LOS CUALES SE OBTIENEN LOS DATOS PERSONALES",null,"CATÁLOGO DE FORMATOS DE ALMACENAMIENTO ASÍ COMO LA DESCRIPCIÓN GENERAL DE A UBICACIÓN FÍSICA Y/O ELECTRÓNICA DE LOS DATOS PERSONALES",null,"LA LISTA DE SERVIDORES PÚBLICOS QUE TIENEN ACCESO A LOS SISTEMAS DE TRATAMIENTO","CANCELACIÓN, SUPRESIÓN O DESTRUCCIÓN DE LOS DATOS PERSONALES."]
["CATEGORÍA DE LOS DATOS PERSONALES","DATOS PERSONALES OBTENIDOS","No.","¿SON SENSIBLES?","FORMA DE OBTENCIÓN       DIRECTA/INDIRECTAMENTE DEL TITULAR.","FORMATOS EN LOS QUE SE PLASMAN LOS DATOS PERSONALES OBTENIDOS.","MEDIOS DE ALMACENAMIENTO DE LOS DATOS OBTENIDOS.","SITIOS DE RESGUARDO \"UBICACIÓN FÍSICA Y/O ELECTRÓNICA\"","PERSONAS QUE TIENEN ACCESO A LOS DATOS PERSONALES. ","REFERENCIA DOCUMENTAL CON BASE AL CATALOGO DE DISPOSICIÓN DOCUMENTAL","PLAZO DE CONSERVACIÓN  CON BASE A LO SEÑALADO EN EL CATALOGO DE DISPOSICIÓN DOCUMENTAL.","OBSERVACIONES / COMENTARIOS","Representación cuantitativa de titulares con relación al tratamiento en cuestión. (Cantidad aproximada)"]
["Datos de identificación\ny contacto.","Nombre",{"$f":"IF(OR(B11=\"Nombre\",B11=\"Estado Civil\",B11=\"Registro Federal de Contribuyentes(RFC)\",B11=\"Clave única de Registro de Población (CURP)\",B11=\"Lugar de nacimiento\",B11=\"Fecha de Nacimiento\",B11=\"Nacionalidad\",B11=\"Domicilio\",B11=\"Teléfono particular\",B11=\"Teléfono celular\",B11=\"Correo electrónico\",B11=\"Firma autógrafa\",B11=\"Firma electrónica\",B11=\"Identificación oficial\",B11=\"Edad\",B11=\"Imagen\"),\"1\",\"\")","v":"1"},"No","Directa","Electrónico ","La información se resguarda en diversa carpeta electrónica compartida en la red local del Instituto, la cual solo el personal adscrito a la Dirección de Medios tiene acceso.","Computadoras de asignadas al personal que depende de la Dirección de Medios de Información e Imágen, ubicada en el recinto oficial del Instituto ubicado en Av. Constitución 1465-1 Centro Monterrey, Nuevo León, México, así como en la Red Interna de este Instituto","Dirección de Medios de Información e Imagen, Coordinación de Difusión e Imagen y técnicos adscritos a dichas áreas administrativas.",null,null,null,0]
[null,null,{"$f":"IF(OR(B12=\"Nombre\",B12=\"Estado Civil\",B12=\"Registro Federal de Contribuyentes(RFC)\",B12=\"Clave única de Registro de Población (CURP)\",B12=\"Lugar de nacimiento\",B12=\"Fecha de Nacimiento\",B12=\"Nacionalidad\",B12=\"Domicilio\",B12=\"Teléfono particular\",B12=\"Teléfono celular\",B12=\"Correo electrónico\",B12=\"Firma autógrafa\",B12=\"Firma electrónica\",B12=\"Identificación oficial\",B12=\"Edad\",B12=\"Imagen\"),\"1\",\"\")","v":""}]
[null,null,{"$f":"IF(OR(B13=\"Nombre\",B13=\"Estado Civil\",B13=\"Registro Federal de Contribuyentes(RFC)\",B13=\"Clave única de Registro de Población (CURP)\",B13=\"Lugar de nacimiento\",B13=\"Fecha de Nacimiento\",B13=\"Nacionalidad\",B13=\"Domicilio\",B13=\"Teléfono particular\",B13=\"Teléfono celular\",B13=\"Correo electrónico\",B13=\"Firma autógrafa\",B13=\"Firma electrónica\",B13=\"Identificación oficial\",B13=\"Edad\",B13=\"Imagen\"),\"1\",\"\")","v":""},null,null,"Físico"]
[null,"Datos personales","No.","Columna4","Forma de obtención Directa/ Indirectamente del Titular.","Físico","Medios de almacenamiento","Columna1","Personas que tienen acceso al sistema de datos personales","Observaciones/Comentarios ","Columna5","Columna3","Columna2"]
["Datos sobre características\nfísicas.",null,{"$f":"IF(OR(B15=\"Color de la piel\",B15=\"Color del iris\",B15=\"Color del cabello\",B15=\"Señas particulares\", B15=\"Estatura\", B15=\"Peso\",B15=\"Cicatrices\",B15=\"Tipo de sangre\"),\"1\",\"\")","v":""}]
[null,null,{"$f":"IF(OR(B16=\"Color de la piel\",B16=\"Color del iris\",B16=\"Color del cabello\",B16=\"Señas particulares\", B16=\"Estatura\", B16=\"Peso\",B16=\"Cicatrices\",B16=\"Tipo de sangre\"),\"1\",\"\")","v":""}]
[null,null,""]
[null,"Datos personales","No.","Columna4","Columna42","Columna43","Columna5","Columna1","Personas que tienen acceso al sistema de datos personales","Observaciones/Comentarios ","Columna6","Columna2","Columna3"]
["Datos laborales.",null,{"$f":"IF(OR(B19=\"Puesto o cargo que desempeña o área\",B19=\"Domicilio de trabajo\",B19=\"Correo electrónico institucional\",B19=\"Teléfono institucional\",B19=\"Referencias laborales\", B19=\"Referencias personales\",B19=\"Información generada durante los procesos de reclutamiento, selección y contratación\",B19=\"Trayectoria laboral\",B19=\"Capacitación laboral\"),\"1\",\"\")","v":""}]
[null,null,{"$f":"IF(OR(B20=\"Puesto o cargo que desempeña o área\",B20=\"Domicilio de trabajo\",B20=\"Correo electrónico institucional\",B20=\"Teléfono institucional\",B20=\"Referencias laborales\", B20=\"Referencias personales\",B20=\"Información generada durante los procesos de reclutamiento, selección y contratación\",B20=\"Trayectoria laboral\",B20=\"Capacitación laboral\"),\"1\",\"\")","v":""}]
[null,null,{"$f":"IF(OR(B21=\"Puesto o cargo que desempeña o área\",B21=\"Domicilio de trabajo\",B21=\"Correo electrónico institucional\",B21=\"Teléfono institucional\",B21=\"Referencias laborales\", B21=\"Referencias personales\",B21=\"Información generada durante los procesos de reclutamiento, selección y contratación\",B21=\"Trayectoria laboral\",B21=\"Capacitación laboral\"),\"1\",\"\")","v":""}]
[null,"Datos personales","No.","Columna4","Columna42","Columna43","Columna5","Columna1","Personas que tienen acceso al sistema de datos personales","Observaciones/Comentarios ","Columna6","Columna2","Columna3"]
["Datos académicos.",null,{"$f":"IF(OR(B23=\"Trayectoria educativa\",B23=\"Escolaridad\",B23=\"Títulos\",B23=\"Cédula profesional\",B23=\"Certificados\",B23=\"Reconocimientos\"),\"1\",\"\")","v":""}]
[null,null,{"$f":"IF(OR(B24=\"Trayectoria educativa\",B24=\"Escolaridad\",B24=\"Títulos\",B24=\"Cédula profesional\",B24=\"Certificados\",B24=\"Reconocimientos\"),\"1\",\"\")","v":""}]
[null,null,""]
[null,"Datos personales","No.","Columna4","Columna42","Columna43","Columna5","Columna1","Personas que tienen acceso al sistema de datos personales","Observaciones/Comentarios ","Columna6","Columna2","Columna3"]
["Datos patrimoniales\ny/o financieros.",null,{"$f":"IF(OR(B27=\"Bienes muebles\",B27=\"Bienes inmuebles\",B27=\"Información financiera\",B27=\"Información fiscal\", B27=\"Historial crediticio\",B27=\"Sueldo\",B27=\"Ingresos\",B27=\"Egresos\",B27=\"Cuentas bancarias / número de Cta.\",B27=\"Número de tarjetas de crédito /débito\",B27=\"Código de seguridad tarjeta\",B27=\"Fecha de vencimiento\",B27=\"Seguros\",B27=\"Afores\"),\"1\",\"\")","v":""}]
[null,null,{"$f":"IF(OR(B28=\"Bienes muebles\",B28=\"Bienes inmuebles\",B28=\"Información financiera\",B28=\"Información fiscal\", B28=\"Historial crediticio\",B28=\"Sueldo\",B28=\"Ingresos\",B28=\"Egresos\",B28=\"Cuentas bancarias / número de Cta.\",B28=\"Número de tarjetas de crédito /débito\",B28=\"Código de seguridad tarjeta\",B28=\"Fecha de vencimiento\",B28=\"Seguros\",B28=\"Afores\"),\"1\",\"\")","v":""}]
[null,null,""]
[null,"Datos personales","No.","Columna4","Columna42","Columna43","Columna5","Columna1","Personas que tienen acceso al sistema de datos personales","Observaciones/Comentarios ","Columna6","Columna2","Columna3"]
["Datos biométricos.",null,{"$f":"IF(OR(B31=\"Imagen del iris\",B31=\"Mapa de venas\",B31=\"Huella dactilar\",B31=\"Palma de la mano\"),\"1\",\"\")","v":""}]
[null,null,{"$f":"IF(OR(B32=\"Imagen del iris\",B32=\"Mapa de venas\",B32=\"Huella dactilar\",B32=\"Palma de la mano\"),\"1\",\"\")","v":""}]
[null,null,""]
[null,"Datos personales","No.","Columna4","Columna42","Columna43","Columna5","Columna1","Personas que tienen acceso al sistema de datos personales","Observaciones/Comentarios ","Columna6","Columna2","Columna3"]
["Datos migratorios.",null,{"$f":"IF(OR(B35=\"Entradas al país\",B35=\"Salidas del país\",B35=\"Tiempo de permanencia en el país\",B35=\"Calidad migratoria\",B35=\"Derechos de residencia\",B35=\"Aseguramiento\",B35=\"Repatriación\"),\"1\",\"\")","v":""}]
[null,null,{"$f":"IF(OR(B36=\"Entradas al país\",B36=\"Salidas del país\",B36=\"Tiempo de permanencia en el país\",B36=\"Calidad migratoria\",B36=\"Derechos de residencia\",B36=\"Aseguramiento\",B36=\"Repatriación\"),\"1\",\"\")","v":""}]
[null,null,""]
[null,"Datos personales","No.","Columna4","Columna42","Columna43","Columna5","Columna1","Personas que tienen acceso al sistema de datos personales","Observaciones/Comentarios ","Columna6","Columna2","Columna3"]
["Datos sobre pasatiempos, entretenimiento y diversión.",null,{"$f":"IF(OR(B39=\"Pasatiempos\",B39=\"Aficiones\",B39=\"Deportes\",B39=\"Juegos de su interés\"),\"1\",\"\")","v":""}]
[null,null,""]
[null,null,""]
[null,"Datos personales","No.","Columna4","Columna42","Columna43","Columna5","Columna1","Personas que tienen acceso al sistema de datos personales","Observaciones/Comentarios ","Columna6","Columna2","Columna3"]
["Datos sobre la ideología;\ncreencias religiosas, filosóficas o morales; opiniones políticas y afiliación sindical.",null,{"$f":"IF(OR(B43=\"Posturas ideológicas\",B43=\"Religión que profesa\",B43=\"Posturas filosóficas\",B43=\"Posturas morales\",B43=\"Posturas políticas\",B43=\"Pertenencia a un sindicato\"),\"1\",\"\")","v":""}]
[null,null,{"$f":"IF(OR(B44=\"Posturas ideológicas\",B44=\"Religión que profesa\",B44=\"Posturas filosóficas\",B44=\"Posturas morales\",B44=\"Posturas políticas\",B44=\"Pertenencia a un sindicato\"),\"1\",\"\")","v":""}]
[null,null,""]
[null,"Datos personales","No.","Columna4","Columna42","Columna43","Columna5","Columna1","Personas que tienen acceso al sistema de datos personales","Observaciones/Comentarios ","Columna6","Columna2","Columna3"]
["Datos de salud.",null,{"$f":"IF(OR(B47=\"Estado de salud físico presente, pasado o futuro\",B47=\"Diagnóstico\",B47=\"Estado de salud mental presente, pasado o futuro\",B47=\"Información genética\"),\"1\",\"\")","v":""}]
[null,null,""]
[null,null,""]
[null,"Datos personales","No.","Columna4","Columna42","Columna43","Columna5","Columna1","Personas que tienen acceso al sistema de datos personales","Observaciones/Comentarios ","Columna6","Columna2","Columna3"]
["Datos sobre vida sexual.",null,{"$f":"IF(OR(B51=\"Preferencias sexuales\",B51=\"Prácticas o hábitos sexuales\"),\"1\",\"\")","v":""}]
[null,null,{"$f":"IF(OR(B52=\"Preferencias sexuales\",B52=\"Prácticas o hábitos sexuales\"),\"1\",\"\")","v":""}]
[null,null,""]
[null,"Datos personales","No.","Columna4","Columna42","Columna43","Columna5","Columna1","Personas que tienen acceso al sistema de datos personales","Observaciones/Comentarios ","Columna6","Columna2","Columna3"]
["Datos de origen étnico\no racial.",null,{"$f":"IF(OR(B55=\"Pertenencia a un pueblo, etnia o región\",B55=\"Lengua originaria\", B55=\"Costumbres\"),\"1\",\" \")","v":" "}]
[null,null,{"$f":"IF(OR(B56=\"Pertenencia a un pueblo, etnia o región\",B56=\"Lengua originaria\", B56=\"Costumbres\"),\"1\",\" \")","v":" "}]
[null,null,{"$f":"IF(OR(B57=\"Pertenencia a un pueblo, etnia o región\",B57=\"Lengua originaria\", B57=\"Costumbres\"),\"1\",\" \")","v":" "}]
[null,"Datos personales","No.","Columna4","Columna42","Columna43","Columna5","Columna1","Personas que tienen acceso al sistema de datos personales","Observaciones/Comentarios ","Columna6","Columna2","Columna3"]
["Otros "]
[]
[]
["TRANSFERENCIAS / REMISIONES CON TERCEROS Ó ENCARGADOS.","¿Se realizan transferencias o remisiones?","Proveedor/ Tercero","¿Requiere consentimiento del titular?","Nombre completo, denominación o razón social del tercero o encargado","Indique el sustento jurídico que acredite que la transferencia / remisión es licita (suscripción de cláusulas contractuales, convenios de colaboración u otro instrumento jurídico como leyes, reglamentos, entro otros.","Finalidades de la Transferencia / Remisión ","Espacio para comentarios o aclaraciones."]
[null,"No"]
[]
[]
["DATOS PERSONALES UTILIZADOS EN EL SISTEMA DE TRATAMIENTO.",null,null,{"$f":"COUNTIF(C11:C61,\"1\")","v":1}]
["NÚMERO DE TITULARES CON RELACIÓN AL TRATAMIENTO.",null,null,{"$f":"M11","v":0}]
["VOLUMEN GENERAL DE DATOS PERSONALES EN EL TRATAMIENTO. ",null,null,{"$f":"D66*D67","v":0}]
["INSTRUCCIONES Y DEFINICIONES PARA EL LLENADO DEL INVENTARIO.","ENCARGADOS ",null,"FINALIDADES","FORMA DE OBTENCIÓN","FORMATOS EN LOS QUE SE ENCUENTRA LA INFORMACIÓN.","MEDIOS DE ALMACENAMIENTO","SITIOS DE RESGUARDO","PERSONAS QUE TIENE ACCESO A LOS SISTEMAS DE DATOS PERSONALES","PLAZO DE CONSERVACIÓN",null,"Observaciones","Volumen de titulares de los que se tratan datos. "]
[null,"Ley de Protección de Datos Personales en Posesión de los Sujetos Obligados del Estado de Nuevo León.\n\nArtículo 3 fracción XV. Encargado: La persona física o jurídica, pública o privada, ajena a la organización del responsable, que sola o conjuntamente con otras trate datos personales a nombre y por cuenta del responsable.","Favor de seleccionar \"X\" en los datos personales identificados para substanciar los procesos o procedimientos.","Ley de Protección de Datos Personales en Posesión de los Sujetos Obligados del Estado de Nuevo León.\n\nArtículo 18. Todo tratamiento de datos personales que efectúe el responsable deberá estar justificado por finalidades concretas, lícitas, explícitas y legítimas, relacionadas con las atribuciones que la normatividad aplicable les confiera.\n\nEl responsable podrá tratar datos personales para finalidades distintas a aquéllas establecidas en el aviso de privacidad, siempre y cuando cuente con atribuciones conferidas en la ley y medie el consentimiento del titular, salvo que sea una persona reportada como desaparecida, en los términos previstos en la presente Ley y demás disposiciones que resulten aplicables en la materia.","I.-Directamente del titular:\nDe manera personal, cuando de manera física (presencial) o electrónica (siempre que implique cuestiones de no repudio) el titular de los datos personales o su representante, en su caso proporciona datos personales, ejemplo.\n      a) Vía telefónica\n      b) Por correo electrónico.\n      c) Por internet o sistema informático. \n      d) Por escrito presentado directamente\n          en las oficinas del sujeto obligado.\n      e) Por escrito enviado por mensajería.","En este apartado, deberán señalar como es que concentran los datos personales, pudiendo ser:\n\n       I) Físicamente\n       II) Electrónicamente o,\n       III) Mixto \n\nDocumentos fuente, es decir, aquellos a través de los cuales se obtienen datos personales ya sea de manera física electrónica, por ejemplo:\n\n \"Encuestas, Formatos Únicos de Registro\"\n\n","Medios de almacenamiento Físicos: Todo recurso inteligible a simple vista y con el que se puede interactuar sin la necesidad de ningún aparato que procese su contenido para examinar, modificar o almacenar datos.\n\nPor ejemplo:\na) Expedientes \nB) Carpetas.\nc)  Baúl\n\nMedios de almacenamiento Electrónicos: Todo recurso al que se puede acceder sólo mediante el uso de equipo de cómputo que procese su contenido para examinar, modificar  o almacenar los datos personales.\n\nPor ejemplo:\nA) Memoria interna de computadora. \nB) Dispositivos de almacenamiento extraíble o removible: \nDiscos duros portátiles, Memorias  USB o SD, CD, Blue-rays\nC) El uso de almacenamiento de servicios en línea (ejemplo nube, o la red electrónica institucional interna \"Carpeta COMUN\"\n\nNo debe pasar por alto que el área administrativa puede manejar mas de un medio de almacenamiento, en ese sentido, en caso de encontrarse bajo este supuesto deberá plasmarlo en el rubro en cuestión.","Se entenderá como sitios de resguardo toda localización donde se resguarden los medios de almacenamiento, tanto físicos como electrónicos (por ejemplo, la casa, la empresa o las instalaciones de un tercero,  plataformas informáticas carpetas compartidas en red, servicios de nube.\n\nExisten diferentes formas de obtención de datos personales que se concentran de diferentes maneras pudiendo ser físicas, electrónicas e incluso una combinación entre ambas;  mismos que se resguardan en los medios de almacenamiento, los cuales a su vez se encuentran en los sitios de resguardo.","Con la finalidad tener identificado quienes son las personas que acceden al sistema de tratamiento, en este rubro deberán señalar únicamente el puesto o cargo con el que se ostentan.","Se sugiere tomar en consideración los plazos de conservación establecidos en el catálogo de disposición documental elaborado por el sujeto obligado.",null,"En caso de existir algún supuesto  puede aprovechar este espacio para hacer alguna precisión o aclaración.","En esta columna, se les solicita de la manera mas atenta ingresar un valor cuantitativo respecto de los titulares de los que se tratan datos.\n\nPara una mejor comprensión respecto a como sacar el volumen de titulares en un tratamiento conviene hacer las siguientes precisiones:\n\n1.- Por una parte, esto se puede sacar con base a la cantidad de los medios de almacenamiento generados en el tratamiento, algunos medios de almacenamiento pueden ser \"expedientes\", los cuales integran documentos de archivo derivado de un asunto, actividad, trámite específico o algún procedimiento en donde se ve involucrado el titular de los datos.\n\nPara una mejor apreciación, conviene representar esta situación mediante el siguiente ejemplo:   \n\nEjemplo 1.- Un sujeto obligado señaló como medio de almacenamiento \"expedientes\", por lo tanto, un dato cuantitativo es la cantidad de expedientes con los que cuenta para el tratamiento respectivo, en este caso podría ser \"1857\" expedientes, es necesario comentar que pueden haber expedientes en trámite que no hayan sido contabilizados, por tal motivo se podrá ingresar una cantidad aproximada.\n\n2.- Por otra parte, es importante destacar que algunos trámites realizados por los sujetos obligados no permiten establecer una correlación directa entre el número de titulares y el volumen de expedientes, esto se debe a que ciertas actividades, en las cuales se recopilan datos de titulares, se consolidan en un único expediente. \nPor lo tanto, la relación entre la cantidad de titulares y expedientes no siempre es proporcional, ya que la información recopilada puede estar concentrada en expedientes específicos, para una mejor comprensión se deja un ejemplo:\n\nEjemplo2.- El INFONL realiza un tratamiento en donde obtiene datos personales de forma directa de los titulares que vienen a solicitar un servicio de asesoría u orientación en temas de acceso a la información y/o Protección de datos personales,  el personal del INFONL recaba datos de los interesados mediante encuestas y formatos por así disponerlo gestión de calidad (para evaluar los servicios que se brindan por parte de los servidores públicos a los visitantes y mejorar las atenciones que se brindan).\n\nAsí las cosas, el personal del INFONL tiene como medio de almacenamiento una carpeta física para resguarda todas esas encuestas y formatos de solicitudes de asesoría u orientación realizadas durante todo el año. \n\nPor tanto, en este supuesto lo recomendable es ingresar la cantidad de encuestas y/o solicitudes presentadas por los titulares en el año, ya que, precisar únicamente considerando que solo se genera una carpeta al año, el resultado del  volumen de los datos personales procesados para ese tratamiento será una cifra muy.  \n\nEste rubro es opcional, sin embargo es importante señalar que al ingresar la cantidad de los medios de almacenamiento o el formato en especifico, y relacionarlo con los datos personales que se recaban en el proceso o procedimiento, actividad, trámite, servicio o beneficio, éste instrumento podrá arrojar un dato cuantitativo del volumen de los datos personales que se manejan en el sistema de tratamiento respectivo, lo cual puede ser de utilidad al momento de elaborar el análisis de riesgos y brecha a la seguridad de los datos personales."]
[null,"Formato General de Inventario de Datos Personales elaborado por la Dirección de Datos Personales del INFONL para uso y orientación de los Responsables que conforman el Padrón de Sujetos Obligados en materia de protección de datos personales de esta entidad, lo anterior  atento a lo establecido por los artículos 38 fracción III y 41 fracción I, 105 fracciones XV, XVIII, XIX, XXIII de la Ley de Protección de Datos Personales en Posesión de los Sujetos Obligados del Estado de Nuevo León, así como el diverso 54 de los Lineamientos de Protección de Datos Personales para los Sujetos Obligados del Estado de Nuevo León. ",null,null,"II.- Indirectamente del Titular:\n\n .-Mediante una transferencia:\n        a) Quien transfiere los datos personales \n         y para que fines.\n        b) Medios por los que se realiza la \n         transferencia.\n\n.-De una fuente de acceso al público:\n      Base de datos que puede ser consultada\n      por cualquier persona, cuyo requisito, en\n      su caso, es el pago de una contraprestación\n      por el servicio.\n      No requiere del consentimiento del titular\n      del dato personal para acceder a éste.\n\na) las páginas de internet o medios remotos o locales de comunicación  electrónica, óptica\ny de otra tecnología, siempre que el sitio donde se encuentren los datos personales\nesté concebido para facilitar información al público y esté abierto a la consulta general;\n\nb) los directorios telefónicos en términos de la normativa específica;\n\nc) los diarios, gacetas o boletines oficiales, de acuerdo con su normativa;\n\nd) los medios de comunicación social y\n\ne) los registros públicos conforme a las disposiciones que les resulten aplicables.","Al describir el catálogo de formatos de almacenamiento así como la descripción general de la ubicación física y/o electrónica donde se encuentran los datos personales, así como definir quienes son las personas que tienen acceso a los datos personales, permite al responsable estar en posibilidad de implementar medidas de seguridad por capas, tal como a continuación se ilustra:\n\nPrimer capa es un sitio de resguardo donde se encuentren los medios de almacenamiento, por ejemplo:\n\nPara poder acceder a los formatos de a los datos, dicho sitio seria en las instalaciones del INFONL, institución que cuenta con un sistema de alarma.\n\nSegunda capa, acceso a los medios de almacenamiento, por ejemplo: \n\nUn archivero bajo llave donde se alojan los expedientes.\n\nTercer capa, acceso al formato en los que se encuentra la información, es decir el documento o documentos en los que se encuentran inmersos los datos personales, por ejemplo:\n\nArchivos fuente (encuestas, formatos únicos de registro), constancias proporcionadas por los titulares para un trámite específico (actas de nacimiento, CURP, RFC, comprobantes de domicilio). \n\nCuarta capa, tener identificado quienes son las personas servidoras públicas al interior del área que tienen acceso a los datos personales y para qué fin, por ejemplo:\n\nSolo aquellos que tengan relación directa con el tratamiento, deberán tener acceso a los datos personales.  "]
[]
[]
[]
[]
[]
[]
[]
[]
[]
[]
[]
[]
[]
[]
[]
[]
[]
[]
[]
[]
[]
[]
[]
[]
[]
[]
[]
[]
[]
[]
[]
[]
[]
[]
[]
[]
[]
[]
[]
[]
[]
[]
[]
[]
[]
[]
[]
[]
[]
[]
[]
[]
[]
[]
[]
[null,null,null,null,"jhfkjehwfjhaesjfhdnsflkadnslkfjlskajdflkawsflkhwkjfhekwSGFLDKJSNGOUHDKJGDLKJFSNGLKAJSLKGFJDLKWJGLKDJSLGKJLKGJDLFSKJGLDKSJGLKDFSLKJGDLFSKJGLKDSJFLKJSELÑKFJAESÑLKJFOIKERWHGLKRJGLKDFSLÑKJSÑLGFKJÑELWJGLKRHJLKGJDFSLKGJDLKSÑJFÑLADSKJFÑLKJLFÑÑLKJDSÑLFÑLJ\n\n\nDFLKSDJGFLKDSJFLKÑJSLGÑKJDFSLKGNDFLKNGLKDFJNGLKJNDLKGFN\n\nLKJHNGFLKJDNSGLKJNDFLKGNDLKFSNGLKGLKDJNRFLKGNERLNGLKNFGLKJNASÑLKFÑASEJGFLKDFSNLDFSBNGKJF\n\n\n\nDKGFNDLKFSNGLÑKADSMGLKJDRSNGÑLKDSHNLGFÑKNDSLKGFNLKFNLKGNFLKGNÑELSKJGFLKEWNGFLÑKEWLKGFJNRjhflkewhflkjewldfjalwÑKJDFÑJLKJFNWEFWEKGLKNGR"]

{"sheet":"Categorias DP","index":1,"n_rows":19,"n_cols":16,"rows_kept":19,"cut":false,"hidden":false,"merged":[]}
["Categorías de datos personales","Datos de Identificación y Contacto ","Datos sobre características físicas ","Datos laborales ","Datos Académicos","Datos patrimoniales ","Datos biométricos","Datos Migratorios","Datos sobre pasatiempos, entretenimiento y diversión","Datos sobre la ideología; creencias religiosas, filosóficas o morales; opiniones políticas y afiliación sindical:","Datos de salud","Datos sobre vida sexual","Datos de origen étnico o racial","Forma de Obtención de los Datos Personales","Formatos de la base de datos","Positivo- Negativo"]
["Identificación_y_Contacto ","No se recaban datos de esta categoría","No se recaban datos de esta categoría","No se recaban datos de esta categoría","No se recaban datos de esta categoría","No se recaban datos de esta categoría","No se recaban datos de esta categoría","No se recaban datos de esta categoría","No se recaban datos de esta categoría","No se recaban datos de esta categoría","No se recaban datos de esta categoría","No se recaban datos de esta categoría","No se recaban datos de esta categoría","Directa","Físico","Si"]
["Características_físicas","Nombre","Color de la piel","Puesto o cargo que desempeña o área","Trayectoria educativa","Bienes muebles","Imagen del iris","Entradas al país","Pasatiempos","Posturas ideológicas","Estado de salud físico presente, pasado o futuro","Preferencias sexuales","Pertenencia a un pueblo, etnia o región","Indirecta","Electrónico ","No"]
["Datos sobre características físicas ","Estado Civil","Color del iris","Domicilio de trabajo","Escolaridad","Bienes inmuebles","Mapa de venas","Salidas del país","Aficiones","Religión que profesa","Diagnóstico","Prácticas o hábitos sexuales","Lengua originaria","Directa e indirecta","Físico y electrónico","Sí, transferencias."]
["Datos laborales ","Registro Federal de Contribuyentes(RFC)","Color del cabello","Correo electrónico institucional","Títulos","Información financiera","Huella dactilar","Tiempo de permanencia en el país","Deportes","Posturas filosóficas","Estado de salud mental presente, pasado o futuro",null,"Costumbres",null,null,"Sí, remisiones."]
["Datos Académicos","Clave única de Registro de Población (CURP)","Señas particulares","Teléfono institucional","Cédula profesional","Información fiscal","Palma de la mano","Calidad migratoria","Juegos de su interés","Posturas morales","Información genética"]
["Datos patrimoniales ","Lugar de nacimiento","Estatura","Referencias laborales","Certificados","Historial crediticio",null,"Derechos de residencia",null,"Posturas políticas"]
["Datos biométricos","Fecha de Nacimiento","Peso","Referencias personales","Reconocimientos","Sueldo",null,"Aseguramiento",null,"Pertenencia a un sindicato"]
["Datos Migratorios","Nacionalidad","Cicatrices","Información generada durante los procesos de reclutamiento, selección y contratación",null,"Ingresos",null,"Repatriación"]
["Datos sobre pasatiempos, entretenimiento y diversión","Domicilio","Tipo de sangre","Trayectoria laboral",null,"Egresos"]
["Datos sobre la ideología; creencias religiosas, filosóficas o morales; opiniones políticas y afiliación sindical:","Teléfono particular",null,"Capacitación laboral",null,"Cuentas bancarias / número de Cta."]
["Datos de salud","Teléfono celular",null,null,null,"Número de tarjetas de crédito /débito"]
["Datos de origen étnico o racial","Correo electrónico",null,null,null,"Código de seguridad tarjeta"]
[null,"Firma autógrafa",null,null,null,"Fecha de vencimiento"]
[null,"Firma electrónica",null,null,null,"Seguros"]
[null,"Identificación oficial",null,null,null,"Afores"]
[null,"Licencia de conducir"]
[null,"Imagen"]
[null,"Edad"]